{"text_format":"1","workbook":"xlsx","n_sheets":2,"sheets":["Status på frit valg i kommunen","Grunddata"],"not_rendered":{"charts":0,"images":1,"macros":1,"external_links":0,"defined_names":7,"comments":1,"pivot_tables":0},"unopened":[],"bounds":{"document_bytes":16777216,"sheet_cells":100000,"rows_first":2000,"rows_last":500,"rows_between":2000,"halvings":0,"cell_chars":16384,"cell_head_chars":4096},"cells_cut":0,"cells_raw":0,"read":"whole","date_system":"1900"}

{"sheet":"Status på frit valg i kommunen","index":0,"n_rows":82,"n_cols":20,"rows_kept":82,"cut":false,"hidden":false,"merged":[[71,2,71,16],[78,2,78,16],[81,2,81,16],[75,2,75,16],[47,15,47,16],[52,15,52,16],[57,15,57,16],[64,13,64,17],[62,13,62,17],[62,2,63,8],[65,13,66,17],[5,2,6,17],[63,13,63,17],[30,2,31,17],[43,13,43,17],[19,2,21,17],[25,2,26,17],[43,2,44,10],[44,13,45,17]]}
[]
[]
[]
[null,null,"Kære læser"]
[]
[null,null,"Følgende værktøj giver et overblik over, hvordan din kommune klarer sig i forhold til at sikre kommunens borgere frit valg på velfærdsområderne. \nVi har taget udgangspunkt i områderne: dagpasning, hjemmehjælp og plejehjem. Alle er områder hvor mange kommuner langt fra er gode nok til at informere og sikre, at borgere, pårørende og forældre kan vælge netop det tilbud, som de mener, opfylder deres ønsker bedst."]
[]
[]
[null,null,"Sådan gør du:"]
[null,null,"Du kan nu vælge din kommune i nedenstående. Derudover kan du vælge op til tre andre kommuner, som du gerne vil sammenligne med. "]
[]
[null,null,"Vælg din kommune her: ",null,null,null,"Albertslund"]
[]
[null,null,"Vælg tre kommuner til sammenligning her:",null,null,null,"Allerød"]
[null,null,null,null,null,null,"Assens"]
[null,null,null,null,null,null,"Ballerup"]
[]
[]
[null,null,"Hvad kan du gøre?"]
[null,null,"Vi har samlet en række forslag til, hvordan du helt konkret kan sikre, at borgerne i den kommune, som du er valgt til at repræsentere, har muligheden for at bruge deres frie valg. Det behøver hverken at være kompliceret, omstændigt eller dyrt. Faktisk er der mange lavthængende frugter, som du og resten af kommunalbestyrelsen kan tage fat på. "]
[]
[]
[null,null,"Se DI's anbefalinger her."]
[]
[null,null,"Hvis du vil vide mere:"]
[null,null,"Frit valg er både lokalt og nationalt. I DI arbejder på begge fronter for at sikre mangfoldighed og variation af velfærdstilbuddene til borgere i hele landet. Du kan læse mere om vores egne forslag til at styrke det frie valg eller vores generelle arbejde på velfærdsområderne her."]
[]
[]
[]
[]
[null,null,"Hvis du har spørgsmål eller ønsker at vide mere om, hvordan du i din kommune kan udbrede viden om det frie valg, skal du endelig ikke tøve med at kontakte os: "]
[]
[null,null,"Lars Bech-Jørgensen",null,null,null,"Christian Broholm Andersen"]
[null,null,"Fagleder, Offentlig/Privat og velfærdspolitik",null,null,null,"Konsulent, Offentlig/Privat og velfærdspolitik"]
[null,null,"Direkte: +45 3377 4671",null,null,null,"Direkte: +45 3377 3516"]
[null,null,"Mobil: +45 2627 1949",null,null,null,"Mobil: +45 5218 5959"]
[null,null,"E-mail: lbej@di.dk",null,null,null,"E-mail: chra@di.dk"]
[]
[]
[]
[]
[]
[]
[null,null,{"$f":"G12&\" \"&IF(VLOOKUP(G12,Grunddata!A:Q,17,FALSE)=0,\"har på nuværende tidspunkt ikke et privat alternativ til de kommunale plejeboliger\",\"har et privat alternativ til de kommunale plejeboliger\")","v":"Albertslund har på nuværende tidspunkt ikke et privat alternativ til de kommunale plejeboliger"},null,null,null,null,null,null,null,null,null,null,"Information til borgerne om muligheder ved det frie valg i udvalgte kommuner"]
[null,null,null,null,null,null,null,null,null,null,null,null,null,"Overblik over tilgængelig information fra DI's gennemgang af kommunernes hjemmesider for plejebolig-, hjemmepleje- og daginstitutionsområdet. Hold musen over informationstyperne for uddybende forklaring."]
[]
[null,null,null,null,null,null,null,null,null,null,null,null,null,null,{"$f":"IF(G12=\"Lyngby-Taarbæk\",G12&\"*\",G12)","v":"Albertslund"},{"$f":"IF(G14=\"Lyngby-Taarbæk\",G14&\"*\",G14)","v":"Allerød"},{"$f":"IF(G15=\"Lyngby-Taarbæk\",G15&\"*\",G15)","v":"Assens"},{"$f":"IF(G16=\"Lyngby-Taarbæk\",G16&\"*\",G16)","v":"Ballerup"}]
[null,null,null,null,null,null,null,null,null,null,null,null,null,null,null,"Plejebolig"]
[null,null,null,null,null,null,null,null,null,null,null,null,null,"Rettigheder",{"$f":"IF(VLOOKUP(O$47,Grunddata!$A:$P,2,FALSE)=\"N/A\",3,VLOOKUP(O$47,Grunddata!$A:$P,2,FALSE))","v":0},{"$f":"IF(VLOOKUP(P$47,Grunddata!$A:$P,2,FALSE)=\"N/A\",3,VLOOKUP(P$47,Grunddata!$A:$P,2,FALSE))","v":0},{"$f":"IF(VLOOKUP(Q$47,Grunddata!$A:$P,2,FALSE)=\"N/A\",3,VLOOKUP(Q$47,Grunddata!$A:$P,2,FALSE))","v":1},{"$f":"IF(VLOOKUP(R$47,Grunddata!$A:$P,2,FALSE)=\"N/A\",3,VLOOKUP(R$47,Grunddata!$A:$P,2,FALSE))","v":0}]
[null,null,null,null,null,null,null,null,null,null,null,null,null,"Valgmuligheder",{"$f":"IF(VLOOKUP(O$47,Grunddata!$A:$P,3,FALSE)=\"N/A\",3,VLOOKUP(O$47,Grunddata!$A:$P,3,FALSE))","v":0},{"$f":"IF(VLOOKUP(P$47,Grunddata!$A:$P,3,FALSE)=\"N/A\",3,VLOOKUP(P$47,Grunddata!$A:$P,3,FALSE))","v":1},{"$f":"IF(VLOOKUP(Q$47,Grunddata!$A:$P,3,FALSE)=\"N/A\",3,VLOOKUP(Q$47,Grunddata!$A:$P,3,FALSE))","v":1},{"$f":"IF(VLOOKUP(R$47,Grunddata!$A:$P,3,FALSE)=\"N/A\",3,VLOOKUP(R$47,Grunddata!$A:$P,3,FALSE))","v":1}]
[null,null,null,null,null,null,null,null,null,null,null,null,null,"Undersøgelse af den brugeroplevet kvalitet",{"$f":"IF(VLOOKUP(O$47,Grunddata!$A:$P,4,FALSE)=\"N/A\",3,VLOOKUP(O$47,Grunddata!$A:$P,4,FALSE))","v":0},{"$f":"IF(VLOOKUP(P$47,Grunddata!$A:$P,4,FALSE)=\"N/A\",3,VLOOKUP(P$47,Grunddata!$A:$P,4,FALSE))","v":0},{"$f":"IF(VLOOKUP(Q$47,Grunddata!$A:$P,4,FALSE)=\"N/A\",3,VLOOKUP(Q$47,Grunddata!$A:$P,4,FALSE))","v":0},{"$f":"IF(VLOOKUP(R$47,Grunddata!$A:$P,4,FALSE)=\"N/A\",3,VLOOKUP(R$47,Grunddata!$A:$P,4,FALSE))","v":0}]
[null,null,null,null,null,null,null,null,null,null,null,null,null,"Aktuel information",{"$f":"IF(VLOOKUP(O$47,Grunddata!$A:$P,5,FALSE)=\"N/A\",3,VLOOKUP(O$47,Grunddata!$A:$P,5,FALSE))","v":0},{"$f":"IF(VLOOKUP(P$47,Grunddata!$A:$P,5,FALSE)=\"N/A\",3,VLOOKUP(P$47,Grunddata!$A:$P,5,FALSE))","v":0},{"$f":"IF(VLOOKUP(Q$47,Grunddata!$A:$P,5,FALSE)=\"N/A\",3,VLOOKUP(Q$47,Grunddata!$A:$P,5,FALSE))","v":0},{"$f":"IF(VLOOKUP(R$47,Grunddata!$A:$P,5,FALSE)=\"N/A\",3,VLOOKUP(R$47,Grunddata!$A:$P,5,FALSE))","v":0}]
[null,null,null,null,null,null,null,null,null,null,null,null,null,null,null,"Hjemmepleje"]
[null,null,null,null,null,null,null,null,null,null,null,null,null,"Rettigheder",{"$f":"IF(VLOOKUP(O$47,Grunddata!$A:$P,7,FALSE)=\"N/A\",3,VLOOKUP(O$47,Grunddata!$A:$P,7,FALSE))","v":1},{"$f":"IF(VLOOKUP(P$47,Grunddata!$A:$P,7,FALSE)=\"N/A\",3,VLOOKUP(P$47,Grunddata!$A:$P,7,FALSE))","v":2},{"$f":"IF(VLOOKUP(Q$47,Grunddata!$A:$P,7,FALSE)=\"N/A\",3,VLOOKUP(Q$47,Grunddata!$A:$P,7,FALSE))","v":0},{"$f":"IF(VLOOKUP(R$47,Grunddata!$A:$P,7,FALSE)=\"N/A\",3,VLOOKUP(R$47,Grunddata!$A:$P,7,FALSE))","v":1}]
[null,null,null,null,null,null,null,null,null,null,null,null,null,"Valgmuligheder",{"$f":"IF(VLOOKUP(O$47,Grunddata!$A:$P,8,FALSE)=\"N/A\",3,VLOOKUP(O$47,Grunddata!$A:$P,8,FALSE))","v":1},{"$f":"IF(VLOOKUP(P$47,Grunddata!$A:$P,8,FALSE)=\"N/A\",3,VLOOKUP(P$47,Grunddata!$A:$P,8,FALSE))","v":1},{"$f":"IF(VLOOKUP(Q$47,Grunddata!$A:$P,8,FALSE)=\"N/A\",3,VLOOKUP(Q$47,Grunddata!$A:$P,8,FALSE))","v":3},{"$f":"IF(VLOOKUP(R$47,Grunddata!$A:$P,8,FALSE)=\"N/A\",3,VLOOKUP(R$47,Grunddata!$A:$P,8,FALSE))","v":1}]
[null,null,null,null,null,null,null,null,null,null,null,null,null,"Undersøgelse af den brugeroplevet kvalitet",{"$f":"IF(VLOOKUP(O$47,Grunddata!$A:$P,9,FALSE)=\"N/A\",3,VLOOKUP(O$47,Grunddata!$A:$P,9,FALSE))","v":0},{"$f":"IF(VLOOKUP(P$47,Grunddata!$A:$P,9,FALSE)=\"N/A\",3,VLOOKUP(P$47,Grunddata!$A:$P,9,FALSE))","v":0},{"$f":"IF(VLOOKUP(Q$47,Grunddata!$A:$P,9,FALSE)=\"N/A\",3,VLOOKUP(Q$47,Grunddata!$A:$P,9,FALSE))","v":0},{"$f":"IF(VLOOKUP(R$47,Grunddata!$A:$P,9,FALSE)=\"N/A\",3,VLOOKUP(R$47,Grunddata!$A:$P,9,FALSE))","v":0},null,{"$f":"COUNTIF(O54:R57,3)","v":1}]
[null,null,null,null,null,null,null,null,null,null,null,null,null,"Aktuel information",{"$f":"IF(VLOOKUP(O$47,Grunddata!$A:$P,10,FALSE)=\"N/A\",3,VLOOKUP(O$47,Grunddata!$A:$P,10,FALSE))","v":0},{"$f":"IF(VLOOKUP(P$47,Grunddata!$A:$P,10,FALSE)=\"N/A\",3,VLOOKUP(P$47,Grunddata!$A:$P,10,FALSE))","v":0},{"$f":"IF(VLOOKUP(Q$47,Grunddata!$A:$P,10,FALSE)=\"N/A\",3,VLOOKUP(Q$47,Grunddata!$A:$P,10,FALSE))","v":0},{"$f":"IF(VLOOKUP(R$47,Grunddata!$A:$P,10,FALSE)=\"N/A\",3,VLOOKUP(R$47,Grunddata!$A:$P,10,FALSE))","v":0}]
[null,null,null,null,null,null,null,null,null,null,null,null,null,null,null,"Daginstitutioner"]
[null,null,null,null,null,null,null,null,null,null,null,null,null,"Rettigheder",{"$f":"IF(VLOOKUP(O$47,Grunddata!$A:$P,12,FALSE)=\"N/A\",3,VLOOKUP(O$47,Grunddata!$A:$P,12,FALSE))","v":0},{"$f":"IF(VLOOKUP(P$47,Grunddata!$A:$P,12,FALSE)=\"N/A\",3,VLOOKUP(P$47,Grunddata!$A:$P,12,FALSE))","v":0},{"$f":"IF(VLOOKUP(Q$47,Grunddata!$A:$P,12,FALSE)=\"N/A\",3,VLOOKUP(Q$47,Grunddata!$A:$P,12,FALSE))","v":1},{"$f":"IF(VLOOKUP(R$47,Grunddata!$A:$P,12,FALSE)=\"N/A\",3,VLOOKUP(R$47,Grunddata!$A:$P,12,FALSE))","v":0}]
[null,null,null,null,null,null,null,null,null,null,null,null,null,"Valgmuligheder",{"$f":"IF(VLOOKUP(O$47,Grunddata!$A:$P,13,FALSE)=\"N/A\",3,VLOOKUP(O$47,Grunddata!$A:$P,13,FALSE))","v":0},{"$f":"IF(VLOOKUP(P$47,Grunddata!$A:$P,13,FALSE)=\"N/A\",3,VLOOKUP(P$47,Grunddata!$A:$P,13,FALSE))","v":0},{"$f":"IF(VLOOKUP(Q$47,Grunddata!$A:$P,13,FALSE)=\"N/A\",3,VLOOKUP(Q$47,Grunddata!$A:$P,13,FALSE))","v":1},{"$f":"IF(VLOOKUP(R$47,Grunddata!$A:$P,13,FALSE)=\"N/A\",3,VLOOKUP(R$47,Grunddata!$A:$P,13,FALSE))","v":0}]
[null,null,null,null,null,null,null,null,null,null,null,null,null,"Undersøgelse af den brugeroplevet kvalitet",{"$f":"IF(VLOOKUP(O$47,Grunddata!$A:$P,14,FALSE)=\"N/A\",3,VLOOKUP(O$47,Grunddata!$A:$P,14,FALSE))","v":0},{"$f":"IF(VLOOKUP(P$47,Grunddata!$A:$P,14,FALSE)=\"N/A\",3,VLOOKUP(P$47,Grunddata!$A:$P,14,FALSE))","v":0},{"$f":"IF(VLOOKUP(Q$47,Grunddata!$A:$P,14,FALSE)=\"N/A\",3,VLOOKUP(Q$47,Grunddata!$A:$P,14,FALSE))","v":0},{"$f":"IF(VLOOKUP(R$47,Grunddata!$A:$P,14,FALSE)=\"N/A\",3,VLOOKUP(R$47,Grunddata!$A:$P,14,FALSE))","v":0},null,{"$f":"COUNTIF(O59:R62,3)","v":0}]
[null,null,"Kilde: Plejehjemsoversigten.dk (Sundhedsdatastyrelsen) og DI.",null,null,null,null,null,null,null,null,null,null,"Aktuel information",{"$f":"IF(VLOOKUP(O$47,Grunddata!$A:$P,15,FALSE)=\"N/A\",3,VLOOKUP(O$47,Grunddata!$A:$P,15,FALSE))","v":0},{"$f":"IF(VLOOKUP(P$47,Grunddata!$A:$P,15,FALSE)=\"N/A\",3,VLOOKUP(P$47,Grunddata!$A:$P,15,FALSE))","v":0},{"$f":"IF(VLOOKUP(Q$47,Grunddata!$A:$P,15,FALSE)=\"N/A\",3,VLOOKUP(Q$47,Grunddata!$A:$P,15,FALSE))","v":0},{"$f":"IF(VLOOKUP(R$47,Grunddata!$A:$P,15,FALSE)=\"N/A\",3,VLOOKUP(R$47,Grunddata!$A:$P,15,FALSE))","v":0}]
[null,null,"Anm.: Selvejende plejehjem på driftsoverenskomst er defineret som kommunale plejeboliger, da de er underlagt en kontrol, der svarer til kommunens kontrol med egne plejeboliger, og dermed har begrænsede muligheder for at adskille sig. Friplejehjem i Aabenraa, Hjørring, Helsingør og Horsens er under opførelse. Opgørelsen er foretaget i december 2020 og januar 2021.",null,null,null,null,null,null,null,null,null,null,"Kilde: DI's gennemgang af kommunernes hjemmesider for de enkelte områder. Kodningen for hjemmehjælp og plejeboliger er foretaget i december 2020 og januar 2021. Kodningen for daginstitutioner er foretaget i februar og marts 2021."]
[null,null,null,null,null,null,null,null,null,null,null,null,null,"Den blå farve indikerer, at der er information på området inden for de forskellige kategorier. Den grå farve indikerer, at der ikke kan findes information."]
[null,null,null,null,null,null,null,null,null,null,null,null,null,{"$f":"IF(T56>0,\"Der er markeret med lyserød under hjemmepleje, da der på indsamlingstidspunktet ikke har været nogle godkendte private leverandører i kommunen. \",\"\")&\"\"&IF(T61>0,\"Der er markeret med lyserød under daginstitutioner, hvilket betyder, at der ikke er registreret informationstilgængelighed for kommunen. Dette skyldes, at det på indsamlingstidspunktet har været uklart, om der eksisterede private institutioner i kommunen.\",\"\")","v":"Der er markeret med lyserød under hjemmepleje, da der på indsamlingstidspunktet ikke har været nogle godkendte private leverandører i kommunen. "}]
[null,null,null,null,null,null,null,null,null,null,null,null,null,{"$f":"IF(O47=\"Lyngby-Taarbæk*\",\"* Lyngby-Taarbæks Kommunes hjemmeside for dagpasningsområdet var under ombygning i dataindsamlingsperioden og vurderes derfor ikke.\",IF(P47=\"Lyngby-Taarbæk*\",\"* Lyngby-Taarbæks Kommunes hjemmeside for dagpasningsområdet var under ombygning i dataindsamlingsperioden og vurderes derfor ikke.\",IF(Q47=\"Lyngby-Taarbæk*\",\"* Lyngby-Taarbæks Kommunes hjemmeside for dagpasningsområdet var under ombygning i dataindsamlingsperioden og vurderes derfor ikke.\",IF(R47=\"Lyngby-Taarbæk*\",\"* Lyngby-Taarbæks Kommunes hjemmeside for dagpasningsområdet var under ombygning i dataindsamlingsperioden og vurderes derfor ikke.\",\"\"))))","v":""}]
[]
[]
[]
[]
[null,null,"Metodebeskrivelse af informationsdata:"]
[null,null,"I gennemgangen af kommunernes hjemmesider, er der lagt fokus på de fire indikatorer, som fremgår i tabellen ovenfor. De har alle til formål at belyse, i hvilken udstrækning den enkelte kommune stiller tilstrækkelig information til rådighed for forældre, ældre og pårørende, således der kan træffes et informeret frit valg."]
[]
[]
[null,null,"Plejeboliger:"]
[null,null,"Vurderingen af kommunernes vejledende informationsniveau vedr. valg af plejebolig tager udgangspunkt i kommunernes primære underside vedr. boliger til ældre. Da indikatorerne ikke forudsætter tilstedeværelsen af friplejeboliger i de enkelte kommuner, indgår samtlige 98 kommuner i datamaterialet. Kommuner uden friplejehjem vurderes således på, om de 1) generelt oplyser om retten til at vælge en friplejebolig, eksempelvis i en nabokommune, 2) om de har offentliggjort en oversigt over valgmulighederne i form af kommunens forskellige plejecentre, 3) om de har offentliggjort en opdatereret undersøgelse af den brugeroplevet kvalitet, der gør det muligt at sammenligne kvaliteten på tværs af plejecentrene, og 4) om de generelle oplysninger er opdateret inden for seneste to år. Kodningen er foretaget i december 2020 og januar 2021."]
[]
[null,null,"Hjemmehjælp:"]
[null,null,"Vurderingen af kommunernes vejledende informationsniveau vedrørende valg af hjemmehjælpsleverandør tager udgangspunkt i kommunernes underside vedrørende visitation og valg af leverandører af praktisk hjælp og personlig pleje på deres hjemmeside. Kodning af indikatoren vedrørende oplysninger om valgmuligheder er kun foretaget for kommuner, der enten via godkendelses- eller udbudsmodellen har minimum ét privat alternativ til kommunen inden for enten personlig pleje eller praktisk hjælp. Kommuner, der udelukkende tilvejebringer det frie valg af hjemmehjælp ved hjælp af fritvalgsbeviser eller som på kodningstidspunktet ikke havde nogle godkendte private leverandører, indgår således ikke i analysen af dette kriterie eller den samlede skala. Disse kommuner indgår imidlertid fortsat i analyserne af de øvrige indikatorer, da de fortsat kan forventes at oplyse om vilkårene for det frie valg eller den brugeroplevet kvalitet af den kommunale hjemmepleje. Kodningen er foretaget i december 2020 og januar 2021."]
[]
[null,null,"Daginstitutioner:"]
[null,null,"Kommuner, hvor der er tvivl om hvorvidt der eksisterer private leverandører er udeladt og fremgår derfor som lyserød i tabellen ovenfor. Vurderingen af kommunernes vejledende informationsniveau vedrørende valg af dagtilbud tager udgangspunkt i kommunernes underside vedr. børnepasning på deres hjemmeside. I tilfælde af private dagtilbud ikke fremgik af kommunens hjemmeside, er der foretaget en generel søgning på private institutioner i den pågældende kommune. De kommuner, hvor det ikke var muligt at identificere private dagtilbud, er udeladt af analysen, da indikatorerne for informationsniveauet vedrørende frit valg af leverandør forudsætter tilstedeværelsen af både kommunale og ikke-kommunale dagpasningstilbud. Omvendt er de kommuner, hvor der eksisterer private leverandører, men disse ikke fremgår af kommunens hjemmeside, fortsat inkluderet i analysen. Endelig er eventuelle forældretilfredshedsundersøgelser undersøgt ved at søge kommunernes øvrige hjemmeside i tilfælde af, at disse ikke fremgår af undersiden vedrørende børnepasning. Kodningen er foretaget i februar og marts 2021."]

{"sheet":"Grunddata","index":1,"n_rows":135,"n_cols":17,"rows_kept":135,"cut":false,"hidden":false,"merged":[]}
[null,"Plejebolig",null,null,null,null,"Hjemmehjælp",null,null,null,null,"Daginstitutioner",null,null,null,null,"Friplejeboliger"]
["Kommunenavn","Rettigheder (0-2)","Valgmuligheder (0-1)","Brugertilfredshed (0-2)","Troværdig information (0-1)","Samlet","Rettigheder (0-2)","Valgmuligheder (0-1)","Brugertilfredshed (0-2)","Troværdig information (0-1)","Samlet","Rettigheder (0-2)","Valgmuligheder (0-1)","Brugertilfredshed (0-2)","Troværdig information (0-1)","Samlet","1=privat alternativ, 0=ikke privat alternativ"]
["Albertslund",0,0,0,0,{"$f":"SUM(Table13[[#This Row],[Rettigheder (0-2)]:[Troværdig information (0-1)]])","v":0},1,1,0,0,{"$f":"SUM(Table1[[#This Row],[Rettigheder (0-2)]:[Troværdig information (0-1)]])","v":2},0,0,0,0,{"$f":"SUM(L3+M3+N3+O3)","v":0},0]
["Allerød",0,1,0,0,{"$f":"SUM(Table13[[#This Row],[Rettigheder (0-2)]:[Troværdig information (0-1)]])","v":1},2,1,0,0,{"$f":"SUM(Table1[[#This Row],[Rettigheder (0-2)]:[Troværdig information (0-1)]])","v":3},0,0,0,0,0,0]
["Assens",1,1,0,0,{"$f":"SUM(Table13[[#This Row],[Rettigheder (0-2)]:[Troværdig information (0-1)]])","v":2},0,"N/A",0,0,{"$f":"SUM(Table1[[#This Row],[Rettigheder (0-2)]:[Troværdig information (0-1)]])","v":0},1,1,0,0,2,0]
["Ballerup",0,1,0,0,{"$f":"SUM(Table13[[#This Row],[Rettigheder (0-2)]:[Troværdig information (0-1)]])","v":1},1,1,0,0,{"$f":"SUM(Table1[[#This Row],[Rettigheder (0-2)]:[Troværdig information (0-1)]])","v":2},0,0,0,0,0,0]
["Billund",0,1,0,0,{"$f":"SUM(Table13[[#This Row],[Rettigheder (0-2)]:[Troværdig information (0-1)]])","v":1},1,0,0,0,{"$f":"SUM(Table1[[#This Row],[Rettigheder (0-2)]:[Troværdig information (0-1)]])","v":1},0,0,0,0,0,1]
["Bornholm",0,1,0,1,{"$f":"SUM(Table13[[#This Row],[Rettigheder (0-2)]:[Troværdig information (0-1)]])","v":2},1,1,2,1,{"$f":"SUM(Table1[[#This Row],[Rettigheder (0-2)]:[Troværdig information (0-1)]])","v":5},1,0,0,0,1,0]
["Brøndby",1,1,0,1,{"$f":"SUM(Table13[[#This Row],[Rettigheder (0-2)]:[Troværdig information (0-1)]])","v":3},1,0,0,1,{"$f":"SUM(Table1[[#This Row],[Rettigheder (0-2)]:[Troværdig information (0-1)]])","v":2},0,0,0,0,0,0]
["Brønderslev",1,1,0,1,{"$f":"SUM(Table13[[#This Row],[Rettigheder (0-2)]:[Troværdig information (0-1)]])","v":3},1,1,0,1,{"$f":"SUM(Table1[[#This Row],[Rettigheder (0-2)]:[Troværdig information (0-1)]])","v":3},0,0,0,1,1,1]
["Dragør",0,0,0,0,{"$f":"SUM(Table13[[#This Row],[Rettigheder (0-2)]:[Troværdig information (0-1)]])","v":0},1,1,0,0,{"$f":"SUM(Table1[[#This Row],[Rettigheder (0-2)]:[Troværdig information (0-1)]])","v":2},0,1,0,0,1,0]
["Egedal",0,1,0,1,{"$f":"SUM(Table13[[#This Row],[Rettigheder (0-2)]:[Troværdig information (0-1)]])","v":2},1,1,0,1,{"$f":"SUM(Table1[[#This Row],[Rettigheder (0-2)]:[Troværdig information (0-1)]])","v":3},0,0,0,1,1,0]
["Esbjerg",0,1,0,0,{"$f":"SUM(Table13[[#This Row],[Rettigheder (0-2)]:[Troværdig information (0-1)]])","v":1},1,1,0,0,{"$f":"SUM(Table1[[#This Row],[Rettigheder (0-2)]:[Troværdig information (0-1)]])","v":2},0,1,0,0,1,1]
["Fanø",1,1,0,0,{"$f":"SUM(Table13[[#This Row],[Rettigheder (0-2)]:[Troværdig information (0-1)]])","v":2},2,"N/A",0,0,{"$f":"SUM(Table1[[#This Row],[Rettigheder (0-2)]:[Troværdig information (0-1)]])","v":2},"N/A","N/A","N/A",0,".",0]
["Favrskov",0,0,0,1,{"$f":"SUM(Table13[[#This Row],[Rettigheder (0-2)]:[Troværdig information (0-1)]])","v":1},1,1,0,1,{"$f":"SUM(Table1[[#This Row],[Rettigheder (0-2)]:[Troværdig information (0-1)]])","v":3},0,0,2,1,{"$f":"SUM(L15+M15+N15+O15)","v":3},1]
["Faxe",0,1,0,1,{"$f":"SUM(Table13[[#This Row],[Rettigheder (0-2)]:[Troværdig information (0-1)]])","v":2},0,0,0,1,{"$f":"SUM(Table1[[#This Row],[Rettigheder (0-2)]:[Troværdig information (0-1)]])","v":1},1,0,0,1,2,0]
["Fredensborg",0,1,0,1,{"$f":"SUM(Table13[[#This Row],[Rettigheder (0-2)]:[Troværdig information (0-1)]])","v":2},1,1,0,0,{"$f":"SUM(Table1[[#This Row],[Rettigheder (0-2)]:[Troværdig information (0-1)]])","v":2},0,0,0,0,0,0]
["Fredericia",0,1,0,1,{"$f":"SUM(Table13[[#This Row],[Rettigheder (0-2)]:[Troværdig information (0-1)]])","v":2},2,1,0,0,{"$f":"SUM(Table1[[#This Row],[Rettigheder (0-2)]:[Troværdig information (0-1)]])","v":3},0,1,0,0,1,0]
["Frederiksberg",0,1,0,0,{"$f":"SUM(Table13[[#This Row],[Rettigheder (0-2)]:[Troværdig information (0-1)]])","v":1},0,0,2,0,{"$f":"SUM(Table1[[#This Row],[Rettigheder (0-2)]:[Troværdig information (0-1)]])","v":2},0,1,0,0,1,1]
["Frederikshavn",0,1,0,0,{"$f":"SUM(Table13[[#This Row],[Rettigheder (0-2)]:[Troværdig information (0-1)]])","v":1},1,1,0,0,{"$f":"SUM(Table1[[#This Row],[Rettigheder (0-2)]:[Troværdig information (0-1)]])","v":2},0,0,0,0,0,0]
["Frederikssund",0,1,0,1,{"$f":"SUM(Table13[[#This Row],[Rettigheder (0-2)]:[Troværdig information (0-1)]])","v":2},1,1,1,0,{"$f":"SUM(Table1[[#This Row],[Rettigheder (0-2)]:[Troværdig information (0-1)]])","v":3},0,0,0,0,0,1]
["Furesø",1,1,0,1,{"$f":"SUM(Table13[[#This Row],[Rettigheder (0-2)]:[Troværdig information (0-1)]])","v":3},1,1,0,1,{"$f":"SUM(Table1[[#This Row],[Rettigheder (0-2)]:[Troværdig information (0-1)]])","v":3},0,0,0,1,1,0]
["Faaborg-Midtfyn",0,1,0,0,{"$f":"SUM(Table13[[#This Row],[Rettigheder (0-2)]:[Troværdig information (0-1)]])","v":1},1,1,0,0,{"$f":"SUM(Table1[[#This Row],[Rettigheder (0-2)]:[Troværdig information (0-1)]])","v":2},2,1,0,0,3,0]
["Gentofte",0,1,0,1,{"$f":"SUM(Table13[[#This Row],[Rettigheder (0-2)]:[Troværdig information (0-1)]])","v":2},2,1,0,1,{"$f":"SUM(Table1[[#This Row],[Rettigheder (0-2)]:[Troværdig information (0-1)]])","v":4},1,0,0,0,1,0]
["Gladsaxe",0,1,0,0,{"$f":"SUM(Table13[[#This Row],[Rettigheder (0-2)]:[Troværdig information (0-1)]])","v":1},1,1,0,1,{"$f":"SUM(Table1[[#This Row],[Rettigheder (0-2)]:[Troværdig information (0-1)]])","v":3},"N/A","N/A","N/A",0,".",0]
["Glostrup",0,1,0,0,{"$f":"SUM(Table13[[#This Row],[Rettigheder (0-2)]:[Troværdig information (0-1)]])","v":1},1,1,2,1,{"$f":"SUM(Table1[[#This Row],[Rettigheder (0-2)]:[Troværdig information (0-1)]])","v":5},0,0,0,0,{"$f":"SUM(L26+M26+N26+O26)","v":0},0]
["Greve",0,1,1,1,{"$f":"SUM(Table13[[#This Row],[Rettigheder (0-2)]:[Troværdig information (0-1)]])","v":3},1,1,0,1,{"$f":"SUM(Table1[[#This Row],[Rettigheder (0-2)]:[Troværdig information (0-1)]])","v":3},0,0,0,1,1,1]
["Gribskov",0,1,1,1,{"$f":"SUM(Table13[[#This Row],[Rettigheder (0-2)]:[Troværdig information (0-1)]])","v":3},1,1,1,1,{"$f":"SUM(Table1[[#This Row],[Rettigheder (0-2)]:[Troværdig information (0-1)]])","v":4},0,0,0,0,0,1]
["Guldborgsund",0,1,0,0,{"$f":"SUM(Table13[[#This Row],[Rettigheder (0-2)]:[Troværdig information (0-1)]])","v":1},1,1,0,1,{"$f":"SUM(Table1[[#This Row],[Rettigheder (0-2)]:[Troværdig information (0-1)]])","v":3},1,0,0,0,1,1]
["Haderslev",0,1,0,0,{"$f":"SUM(Table13[[#This Row],[Rettigheder (0-2)]:[Troværdig information (0-1)]])","v":1},1,1,0,0,{"$f":"SUM(Table1[[#This Row],[Rettigheder (0-2)]:[Troværdig information (0-1)]])","v":2},0,1,0,0,1,1]
["Halsnæs",0,1,0,0,{"$f":"SUM(Table13[[#This Row],[Rettigheder (0-2)]:[Troværdig information (0-1)]])","v":1},1,1,0,0,{"$f":"SUM(Table1[[#This Row],[Rettigheder (0-2)]:[Troværdig information (0-1)]])","v":2},1,0,0,0,1,0]
["Hedensted",0,1,0,0,{"$f":"SUM(Table13[[#This Row],[Rettigheder (0-2)]:[Troværdig information (0-1)]])","v":1},1,1,0,0,{"$f":"SUM(Table1[[#This Row],[Rettigheder (0-2)]:[Troværdig information (0-1)]])","v":2},1,1,0,0,2,0]
["Helsingør",0,1,0,1,{"$f":"SUM(Table13[[#This Row],[Rettigheder (0-2)]:[Troværdig information (0-1)]])","v":2},1,1,0,1,{"$f":"SUM(Table1[[#This Row],[Rettigheder (0-2)]:[Troværdig information (0-1)]])","v":3},0,0,0,0,0,1]
["Herlev",0,1,0,0,{"$f":"SUM(Table13[[#This Row],[Rettigheder (0-2)]:[Troværdig information (0-1)]])","v":1},1,1,0,0,{"$f":"SUM(Table1[[#This Row],[Rettigheder (0-2)]:[Troværdig information (0-1)]])","v":2},"N/A","N/A","N/A",0,".",0]
["Herning",1,1,0,1,{"$f":"SUM(Table13[[#This Row],[Rettigheder (0-2)]:[Troværdig information (0-1)]])","v":3},1,1,0,0,{"$f":"SUM(Table1[[#This Row],[Rettigheder (0-2)]:[Troværdig information (0-1)]])","v":2},0,0,0,0,{"$f":"SUM(L35+M35+N35+O35)","v":0},1]
["Hillerød",0,1,0,1,{"$f":"SUM(Table13[[#This Row],[Rettigheder (0-2)]:[Troværdig information (0-1)]])","v":2},1,1,0,1,{"$f":"SUM(Table1[[#This Row],[Rettigheder (0-2)]:[Troværdig information (0-1)]])","v":3},0,0,0,1,1,0]
["Hjørring",0,1,0,1,{"$f":"SUM(Table13[[#This Row],[Rettigheder (0-2)]:[Troværdig information (0-1)]])","v":2},0,1,0,0,{"$f":"SUM(Table1[[#This Row],[Rettigheder (0-2)]:[Troværdig information (0-1)]])","v":1},0,0,0,0,0,1]
["Holbæk",0,1,0,1,{"$f":"SUM(Table13[[#This Row],[Rettigheder (0-2)]:[Troværdig information (0-1)]])","v":2},0,0,1,1,{"$f":"SUM(Table1[[#This Row],[Rettigheder (0-2)]:[Troværdig information (0-1)]])","v":2},0,1,0,1,2,1]
["Holstebro",0,1,0,1,{"$f":"SUM(Table13[[#This Row],[Rettigheder (0-2)]:[Troværdig information (0-1)]])","v":2},1,1,0,0,{"$f":"SUM(Table1[[#This Row],[Rettigheder (0-2)]:[Troværdig information (0-1)]])","v":2},0,1,2,1,4,0]
["Horsens",0,1,0,1,{"$f":"SUM(Table13[[#This Row],[Rettigheder (0-2)]:[Troværdig information (0-1)]])","v":2},1,1,0,1,{"$f":"SUM(Table1[[#This Row],[Rettigheder (0-2)]:[Troværdig information (0-1)]])","v":3},0,1,0,0,1,1]
["Hvidovre",1,1,0,0,{"$f":"SUM(Table13[[#This Row],[Rettigheder (0-2)]:[Troværdig information (0-1)]])","v":2},1,1,0,1,{"$f":"SUM(Table1[[#This Row],[Rettigheder (0-2)]:[Troværdig information (0-1)]])","v":3},0,0,0,0,0,0]
["Høje-Taastrup",0,1,0,1,{"$f":"SUM(Table13[[#This Row],[Rettigheder (0-2)]:[Troværdig information (0-1)]])","v":2},2,1,0,1,{"$f":"SUM(Table1[[#This Row],[Rettigheder (0-2)]:[Troværdig information (0-1)]])","v":4},0,0,2,0,2,0]
["Hørsholm",0,1,1,1,{"$f":"SUM(Table13[[#This Row],[Rettigheder (0-2)]:[Troværdig information (0-1)]])","v":3},2,1,2,0,{"$f":"SUM(Table1[[#This Row],[Rettigheder (0-2)]:[Troværdig information (0-1)]])","v":5},0,1,0,0,1,0]
["Ikast-Brande",0,1,0,1,{"$f":"SUM(Table13[[#This Row],[Rettigheder (0-2)]:[Troværdig information (0-1)]])","v":2},1,1,0,0,{"$f":"SUM(Table1[[#This Row],[Rettigheder (0-2)]:[Troværdig information (0-1)]])","v":2},1,0,0,0,1,1]
["Ishøj",0,1,0,1,{"$f":"SUM(Table13[[#This Row],[Rettigheder (0-2)]:[Troværdig information (0-1)]])","v":2},1,1,0,1,{"$f":"SUM(Table1[[#This Row],[Rettigheder (0-2)]:[Troværdig information (0-1)]])","v":3},0,0,0,1,1,0]
["Jammerbugt",0,1,0,0,{"$f":"SUM(Table13[[#This Row],[Rettigheder (0-2)]:[Troværdig information (0-1)]])","v":1},1,"N/A",0,0,{"$f":"SUM(Table1[[#This Row],[Rettigheder (0-2)]:[Troværdig information (0-1)]])","v":1},1,0,0,0,1,1]
["Kalundborg",0,0,0,0,{"$f":"SUM(Table13[[#This Row],[Rettigheder (0-2)]:[Troværdig information (0-1)]])","v":0},0,1,0,0,{"$f":"SUM(Table1[[#This Row],[Rettigheder (0-2)]:[Troværdig information (0-1)]])","v":1},0,0,0,0,0,0]
["Kerteminde",1,1,0,0,{"$f":"SUM(Table13[[#This Row],[Rettigheder (0-2)]:[Troværdig information (0-1)]])","v":2},1,0,0,0,{"$f":"SUM(Table1[[#This Row],[Rettigheder (0-2)]:[Troværdig information (0-1)]])","v":1},0,0,0,0,0,0]
["Kolding",0,1,0,0,{"$f":"SUM(Table13[[#This Row],[Rettigheder (0-2)]:[Troværdig information (0-1)]])","v":1},1,1,0,1,{"$f":"SUM(Table1[[#This Row],[Rettigheder (0-2)]:[Troværdig information (0-1)]])","v":3},0,0,0,0,0,1]
["København",0,0,0,0,{"$f":"SUM(Table13[[#This Row],[Rettigheder (0-2)]:[Troværdig information (0-1)]])","v":0},1,1,2,0,{"$f":"SUM(Table1[[#This Row],[Rettigheder (0-2)]:[Troværdig information (0-1)]])","v":4},0,0,0,0,0,1]
["Køge",0,1,1,1,{"$f":"SUM(Table13[[#This Row],[Rettigheder (0-2)]:[Troværdig information (0-1)]])","v":3},1,1,0,1,{"$f":"SUM(Table1[[#This Row],[Rettigheder (0-2)]:[Troværdig information (0-1)]])","v":3},0,1,0,1,2,0]
["Langeland",0,1,0,0,{"$f":"SUM(Table13[[#This Row],[Rettigheder (0-2)]:[Troværdig information (0-1)]])","v":1},2,"N/A",0,1,{"$f":"SUM(Table1[[#This Row],[Rettigheder (0-2)]:[Troværdig information (0-1)]])","v":3},0,0,0,0,0,0]
["Lejre",0,1,0,0,{"$f":"SUM(Table13[[#This Row],[Rettigheder (0-2)]:[Troværdig information (0-1)]])","v":1},1,0,0,0,{"$f":"SUM(Table1[[#This Row],[Rettigheder (0-2)]:[Troværdig information (0-1)]])","v":1},0,0,0,0,0,0]
["Lemvig",0,1,0,0,{"$f":"SUM(Table13[[#This Row],[Rettigheder (0-2)]:[Troværdig information (0-1)]])","v":1},2,1,0,1,{"$f":"SUM(Table1[[#This Row],[Rettigheder (0-2)]:[Troværdig information (0-1)]])","v":4},0,0,0,0,0,0]
["Lolland",0,1,0,0,{"$f":"SUM(Table13[[#This Row],[Rettigheder (0-2)]:[Troværdig information (0-1)]])","v":1},0,0,0,0,{"$f":"SUM(Table1[[#This Row],[Rettigheder (0-2)]:[Troværdig information (0-1)]])","v":0},0,0,0,0,0,0]
["Lyngby-Taarbæk",0,1,0,1,{"$f":"SUM(Table13[[#This Row],[Rettigheder (0-2)]:[Troværdig information (0-1)]])","v":2},1,1,0,1,{"$f":"SUM(Table1[[#This Row],[Rettigheder (0-2)]:[Troværdig information (0-1)]])","v":3},"N/A","N/A","N/A","N/A",{"$error":"#VALUE!"},0]
["Læsø",0,0,0,0,{"$f":"SUM(Table13[[#This Row],[Rettigheder (0-2)]:[Troværdig information (0-1)]])","v":0},1,"N/A",0,0,{"$f":"SUM(Table1[[#This Row],[Rettigheder (0-2)]:[Troværdig information (0-1)]])","v":1},0,0,0,0,0,0]
["Mariagerfjord",0,1,0,1,{"$f":"SUM(Table13[[#This Row],[Rettigheder (0-2)]:[Troværdig information (0-1)]])","v":2},1,1,0,1,{"$f":"SUM(Table1[[#This Row],[Rettigheder (0-2)]:[Troværdig information (0-1)]])","v":3},1,0,0,1,2,1]
["Middelfart",0,0,0,0,{"$f":"SUM(Table13[[#This Row],[Rettigheder (0-2)]:[Troværdig information (0-1)]])","v":0},0,1,0,0,{"$f":"SUM(Table1[[#This Row],[Rettigheder (0-2)]:[Troværdig information (0-1)]])","v":1},0,0,0,1,1,1]
["Morsø",0,1,0,0,{"$f":"SUM(Table13[[#This Row],[Rettigheder (0-2)]:[Troværdig information (0-1)]])","v":1},1,1,0,0,{"$f":"SUM(Table1[[#This Row],[Rettigheder (0-2)]:[Troværdig information (0-1)]])","v":2},0,0,0,0,0,0]
["Norddjurs",0,1,0,1,{"$f":"SUM(Table13[[#This Row],[Rettigheder (0-2)]:[Troværdig information (0-1)]])","v":2},1,1,1,1,{"$f":"SUM(Table1[[#This Row],[Rettigheder (0-2)]:[Troværdig information (0-1)]])","v":4},1,1,0,1,3,0]
["Nordfyn",0,1,0,1,{"$f":"SUM(Table13[[#This Row],[Rettigheder (0-2)]:[Troværdig information (0-1)]])","v":2},1,1,0,1,{"$f":"SUM(Table1[[#This Row],[Rettigheder (0-2)]:[Troværdig information (0-1)]])","v":3},0,0,0,1,1,0]
["Nyborg",0,1,0,1,{"$f":"SUM(Table13[[#This Row],[Rettigheder (0-2)]:[Troværdig information (0-1)]])","v":2},1,1,0,1,{"$f":"SUM(Table1[[#This Row],[Rettigheder (0-2)]:[Troværdig information (0-1)]])","v":3},0,1,0,1,2,0]
["Næstved",0,1,0,1,{"$f":"SUM(Table13[[#This Row],[Rettigheder (0-2)]:[Troværdig information (0-1)]])","v":2},1,1,0,1,{"$f":"SUM(Table1[[#This Row],[Rettigheder (0-2)]:[Troværdig information (0-1)]])","v":3},0,1,0,1,2,0]
["Odder",0,1,0,0,{"$f":"SUM(Table13[[#This Row],[Rettigheder (0-2)]:[Troværdig information (0-1)]])","v":1},1,0,0,0,{"$f":"SUM(Table1[[#This Row],[Rettigheder (0-2)]:[Troværdig information (0-1)]])","v":1},0,0,0,0,0,1]
["Odense",0,1,0,1,{"$f":"SUM(Table13[[#This Row],[Rettigheder (0-2)]:[Troværdig information (0-1)]])","v":2},1,1,0,1,{"$f":"SUM(Table1[[#This Row],[Rettigheder (0-2)]:[Troværdig information (0-1)]])","v":3},0,0,0,0,0,1]
["Odsherred",0,1,0,0,{"$f":"SUM(Table13[[#This Row],[Rettigheder (0-2)]:[Troværdig information (0-1)]])","v":1},1,1,0,1,{"$f":"SUM(Table1[[#This Row],[Rettigheder (0-2)]:[Troværdig information (0-1)]])","v":3},0,0,0,0,0,1]
["Randers",0,1,0,0,{"$f":"SUM(Table13[[#This Row],[Rettigheder (0-2)]:[Troværdig information (0-1)]])","v":1},1,0,0,0,{"$f":"SUM(Table1[[#This Row],[Rettigheder (0-2)]:[Troværdig information (0-1)]])","v":1},0,0,0,0,0,1]
["Rebild",0,1,0,0,{"$f":"SUM(Table13[[#This Row],[Rettigheder (0-2)]:[Troværdig information (0-1)]])","v":1},1,0,0,0,{"$f":"SUM(Table1[[#This Row],[Rettigheder (0-2)]:[Troværdig information (0-1)]])","v":1},0,0,0,0,0,1]
["Ringkøbing-Skjern",1,1,0,0,{"$f":"SUM(Table13[[#This Row],[Rettigheder (0-2)]:[Troværdig information (0-1)]])","v":2},1,1,0,0,{"$f":"SUM(Table1[[#This Row],[Rettigheder (0-2)]:[Troværdig information (0-1)]])","v":2},1,0,0,0,1,1]
["Ringsted",0,1,0,1,{"$f":"SUM(Table13[[#This Row],[Rettigheder (0-2)]:[Troværdig information (0-1)]])","v":2},1,1,0,1,{"$f":"SUM(Table1[[#This Row],[Rettigheder (0-2)]:[Troværdig information (0-1)]])","v":3},0,0,0,1,1,0]
["Roskilde",0,1,2,1,{"$f":"SUM(Table13[[#This Row],[Rettigheder (0-2)]:[Troværdig information (0-1)]])","v":4},1,1,2,1,{"$f":"SUM(Table1[[#This Row],[Rettigheder (0-2)]:[Troværdig information (0-1)]])","v":5},1,1,0,1,3,1]
["Rudersdal",0,1,0,0,{"$f":"SUM(Table13[[#This Row],[Rettigheder (0-2)]:[Troværdig information (0-1)]])","v":1},1,1,0,0,{"$f":"SUM(Table1[[#This Row],[Rettigheder (0-2)]:[Troværdig information (0-1)]])","v":2},1,0,0,0,1,1]
["Rødovre",0,1,0,0,{"$f":"SUM(Table13[[#This Row],[Rettigheder (0-2)]:[Troværdig information (0-1)]])","v":1},1,0,0,0,{"$f":"SUM(Table1[[#This Row],[Rettigheder (0-2)]:[Troværdig information (0-1)]])","v":1},0,0,0,0,0,0]
["Samsø",0,1,0,1,{"$f":"SUM(Table13[[#This Row],[Rettigheder (0-2)]:[Troværdig information (0-1)]])","v":2},1,"N/A",0,0,{"$f":"SUM(Table1[[#This Row],[Rettigheder (0-2)]:[Troværdig information (0-1)]])","v":1},1,1,0,0,2,0]
["Silkeborg",0,0,0,0,{"$f":"SUM(Table13[[#This Row],[Rettigheder (0-2)]:[Troværdig information (0-1)]])","v":0},0,0,0,0,{"$f":"SUM(Table1[[#This Row],[Rettigheder (0-2)]:[Troværdig information (0-1)]])","v":0},0,1,0,0,1,1]
["Skanderborg",0,1,0,0,{"$f":"SUM(Table13[[#This Row],[Rettigheder (0-2)]:[Troværdig information (0-1)]])","v":1},1,"N/A",0,0,{"$f":"SUM(Table1[[#This Row],[Rettigheder (0-2)]:[Troværdig information (0-1)]])","v":1},0,0,0,0,0,0]
["Skive",2,1,0,0,{"$f":"SUM(Table13[[#This Row],[Rettigheder (0-2)]:[Troværdig information (0-1)]])","v":3},2,1,0,1,{"$f":"SUM(Table1[[#This Row],[Rettigheder (0-2)]:[Troværdig information (0-1)]])","v":4},"N/A","N/A","N/A",1,".",1]
["Slagelse",0,1,0,1,{"$f":"SUM(Table13[[#This Row],[Rettigheder (0-2)]:[Troværdig information (0-1)]])","v":2},1,1,2,1,{"$f":"SUM(Table1[[#This Row],[Rettigheder (0-2)]:[Troværdig information (0-1)]])","v":5},0,1,0,1,{"$f":"SUM(L79+M79+N79+O79)","v":2},0]
["Solrød",0,1,0,1,{"$f":"SUM(Table13[[#This Row],[Rettigheder (0-2)]:[Troværdig information (0-1)]])","v":2},1,1,0,1,{"$f":"SUM(Table1[[#This Row],[Rettigheder (0-2)]:[Troværdig information (0-1)]])","v":3},0,1,0,1,2,1]
["Sorø",0,1,0,1,{"$f":"SUM(Table13[[#This Row],[Rettigheder (0-2)]:[Troværdig information (0-1)]])","v":2},1,1,0,1,{"$f":"SUM(Table1[[#This Row],[Rettigheder (0-2)]:[Troværdig information (0-1)]])","v":3},1,1,0,1,3,0]
["Stevns",1,1,0,1,{"$f":"SUM(Table13[[#This Row],[Rettigheder (0-2)]:[Troværdig information (0-1)]])","v":3},1,0,0,0,{"$f":"SUM(Table1[[#This Row],[Rettigheder (0-2)]:[Troværdig information (0-1)]])","v":1},0,1,0,1,2,0]
["Struer",0,1,0,1,{"$f":"SUM(Table13[[#This Row],[Rettigheder (0-2)]:[Troværdig information (0-1)]])","v":2},1,0,0,1,{"$f":"SUM(Table1[[#This Row],[Rettigheder (0-2)]:[Troværdig information (0-1)]])","v":2},0,0,0,0,0,1]
["Svendborg",0,0,0,0,{"$f":"SUM(Table13[[#This Row],[Rettigheder (0-2)]:[Troværdig information (0-1)]])","v":0},1,1,0,0,{"$f":"SUM(Table1[[#This Row],[Rettigheder (0-2)]:[Troværdig information (0-1)]])","v":2},1,0,0,0,1,1]
["Syddjurs",0,1,2,0,{"$f":"SUM(Table13[[#This Row],[Rettigheder (0-2)]:[Troværdig information (0-1)]])","v":3},1,"N/A",2,1,{"$f":"SUM(Table1[[#This Row],[Rettigheder (0-2)]:[Troværdig information (0-1)]])","v":4},0,0,0,1,1,0]
["Sønderborg",0,0,0,1,{"$f":"SUM(Table13[[#This Row],[Rettigheder (0-2)]:[Troværdig information (0-1)]])","v":1},1,1,0,1,{"$f":"SUM(Table1[[#This Row],[Rettigheder (0-2)]:[Troværdig information (0-1)]])","v":3},0,1,0,1,2,0]
["Thisted",0,1,0,1,{"$f":"SUM(Table13[[#This Row],[Rettigheder (0-2)]:[Troværdig information (0-1)]])","v":2},1,1,0,0,{"$f":"SUM(Table1[[#This Row],[Rettigheder (0-2)]:[Troværdig information (0-1)]])","v":2},1,1,0,1,3,1]
["Tønder",0,1,0,0,{"$f":"SUM(Table13[[#This Row],[Rettigheder (0-2)]:[Troværdig information (0-1)]])","v":1},1,1,2,0,{"$f":"SUM(Table1[[#This Row],[Rettigheder (0-2)]:[Troværdig information (0-1)]])","v":4},0,0,0,0,0,1]
["Tårnby",0,1,0,0,{"$f":"SUM(Table13[[#This Row],[Rettigheder (0-2)]:[Troværdig information (0-1)]])","v":1},1,1,0,0,{"$f":"SUM(Table1[[#This Row],[Rettigheder (0-2)]:[Troværdig information (0-1)]])","v":2},0,0,0,1,1,0]
["Vallensbæk",0,1,0,0,{"$f":"SUM(Table13[[#This Row],[Rettigheder (0-2)]:[Troværdig information (0-1)]])","v":1},1,1,0,1,{"$f":"SUM(Table1[[#This Row],[Rettigheder (0-2)]:[Troværdig information (0-1)]])","v":3},0,0,0,0,0,0]
["Varde",0,1,1,0,{"$f":"SUM(Table13[[#This Row],[Rettigheder (0-2)]:[Troværdig information (0-1)]])","v":2},1,1,0,0,{"$f":"SUM(Table1[[#This Row],[Rettigheder (0-2)]:[Troværdig information (0-1)]])","v":2},0,1,0,0,1,1]
["Vejen",0,1,0,0,{"$f":"SUM(Table13[[#This Row],[Rettigheder (0-2)]:[Troværdig information (0-1)]])","v":1},1,0,0,1,{"$f":"SUM(Table1[[#This Row],[Rettigheder (0-2)]:[Troværdig information (0-1)]])","v":2},1,0,0,0,1,0]
["Vejle",0,1,0,1,{"$f":"SUM(Table13[[#This Row],[Rettigheder (0-2)]:[Troværdig information (0-1)]])","v":2},1,1,0,1,{"$f":"SUM(Table1[[#This Row],[Rettigheder (0-2)]:[Troværdig information (0-1)]])","v":3},0,1,0,1,2,1]
["Vesthimmerland",0,1,0,1,{"$f":"SUM(Table13[[#This Row],[Rettigheder (0-2)]:[Troværdig information (0-1)]])","v":2},1,1,0,1,{"$f":"SUM(Table1[[#This Row],[Rettigheder (0-2)]:[Troværdig information (0-1)]])","v":3},1,0,0,0,1,1]
["Viborg",2,1,0,0,{"$f":"SUM(Table13[[#This Row],[Rettigheder (0-2)]:[Troværdig information (0-1)]])","v":3},1,1,0,0,{"$f":"SUM(Table1[[#This Row],[Rettigheder (0-2)]:[Troværdig information (0-1)]])","v":2},1,1,0,0,2,1]
["Vordingborg",0,0,0,0,{"$f":"SUM(Table13[[#This Row],[Rettigheder (0-2)]:[Troværdig information (0-1)]])","v":0},1,1,0,0,{"$f":"SUM(Table1[[#This Row],[Rettigheder (0-2)]:[Troværdig information (0-1)]])","v":2},0,0,0,0,0,0]
["Ærø",0,1,0,1,{"$f":"SUM(Table13[[#This Row],[Rettigheder (0-2)]:[Troværdig information (0-1)]])","v":2},1,"N/A",0,0,{"$f":"SUM(Table1[[#This Row],[Rettigheder (0-2)]:[Troværdig information (0-1)]])","v":1},0,1,0,0,1,0]
["Aabenraa",0,1,0,0,{"$f":"SUM(Table13[[#This Row],[Rettigheder (0-2)]:[Troværdig information (0-1)]])","v":1},1,0,0,0,{"$f":"SUM(Table1[[#This Row],[Rettigheder (0-2)]:[Troværdig information (0-1)]])","v":1},0,0,0,0,0,1]
["Aalborg",2,1,0,0,{"$f":"SUM(Table13[[#This Row],[Rettigheder (0-2)]:[Troværdig information (0-1)]])","v":3},1,1,0,0,{"$f":"SUM(Table1[[#This Row],[Rettigheder (0-2)]:[Troværdig information (0-1)]])","v":2},1,0,0,0,1,1]
["Aarhus",0,1,0,1,{"$f":"SUM(Table13[[#This Row],[Rettigheder (0-2)]:[Troværdig information (0-1)]])","v":2},1,1,0,1,{"$f":"SUM(Table1[[#This Row],[Rettigheder (0-2)]:[Troværdig information (0-1)]])","v":3},1,0,1,1,3,1]
[]
[]
[]
[]
[]
[]
[]
[]
[]
[]
[]
[]
[]
[]
[]
[]
[]
[]
[]
[]
[]
[]
[]
[]
[]
[]
[]
[]
[]
[]
[]
[]
[]
[]
[null,null,null,null,null,null,1]